bitfinex-derivatives/quotes_BTCF0:USTF0_20250130
["timestamp","ask_amount","ask_price","bid_price","bid_amount"]
[1738263874712,0.35706174,105560.0,105550.0,0.55241558]
[1738263875107,0.71786174,105560.0,105550.0,0.00214258]
[1738263875413,0.35706174,105560.0,105550.0,0.00214258]
[1738263875907,0.35706174,105560.0,105550.0,0.00314258]
[1738263876510,0.35706174,105560.0,105550.0,0.00214258]
[1738263876711,0.35706174,105560.0,105550.0,0.19161558]
[1738263877414,0.35706174,105560.0,105550.0,0.18961558]
[1738263877614,0.47025809,105560.0,105550.0,0.18961558]
[1738263878913,0.86265809,105560.0,105550.0,0.18961558]
[1738263879411,0.86265809,105560.0,105550.0,0.00014258]
[1738263879616,0.86265809,105560.0,105550.0,0.18961558]
[1738263880619,0.86265809,105560.0,105550.0,0.00014258]
[1738263882121,0.89095718,105560.0,105550.0,0.00014258]
[1738263883317,0.89195718,105560.0,105550.0,0.00014258]
[1738263883825,0.89495718,105560.0,105550.0,0.00014258]
[1738263885522,0.89195718,105560.0,105550.0,0.00014258]
[1738263885819,0.89495718,105560.0,105550.0,0.00014258]
[1738263886419,0.92099718,105560.0,105550.0,0.00014258]
[1738263886619,0.94821089,105560.0,105550.0,0.00014258]
[1738263886819,0.94921089,105560.0,105550.0,0.00014258]
[1738263887326,0.189473,105550.0,105540.0,1.68946821]
[1738263887736,0.65387974,105550.0,105540.0,1.68946821]
[1738263888429,0.65387974,105550.0,105540.0,0.18946821]
[1738263888628,0.576313,105550.0,105540.0,0.18946821]
[1738263889537,0.67991974,105550.0,105540.0,0.18946821]
[1738263889839,0.49044674,105550.0,105530.0,1.99654932]
[1738263890041,0.65389774,105540.0,105530.0,0.00014258]
[1738263890342,0.68499774,105540.0,105530.0,0.00014258]
[1738263891631,0.581391,105540.0,105530.0,0.18965158]
[1738263892332,0.581391,105540.0,105530.0,0.19065158]
[1738263893130,0.581391,105540.0,105530.0,0.18965158]
[1738263893935,0.69455945,105540.0,105530.0,0.18965158]
[1738263894239,0.69455945,105540.0,105530.0,0.00014258]
[1738263894542,0.79816619,105540.0,105530.0,0.00014258]
[1738263894736,0.80763936,105540.0,105530.0,0.00014258]
[1738263896337,0.80763936,105540.0,105530.0,0.18965158]
[1738263896643,0.67568438,105540.0,105530.0,0.18965158]
[1738263898544,0.31488438,105540.0,105530.0,0.18965158]
[1738263898740,0.08482021,105540.0,105530.0,0.70405832]
[1738263898946,0.08482021,105540.0,105530.0,0.76089832]
[1738263899444,0.11316845,105550.0,105540.0,0.189491]
[1738263899637,0.11316845,105550.0,105540.0,0.78830448]
[1738263899837,0.11316845,105550.0,105540.0,0.68469774]
[1738263900344,0.11316845,105550.0,105540.0,0.91434448]
[1738263900839,0.31131229,105560.0,105540.0,0.72485348]
[1738263901045,0.31131229,105560.0,105550.0,0.65387974]
[1738263902044,0.31131229,105560.0,105550.0,0.69387974]
[1738263902541,0.31231229,105560.0,105550.0,0.69387974]
[1738263902744,0.00114258,105560.0,105550.0,0.69387974]
[1738263903844,0.00414258,105560.0,105550.0,0.69387974]
[1738263904046,0.00414258,105560.0,105550.0,0.72687974]
[1738263906442,0.00414258,105560.0,105550.0,0.7366055]
[1738263907345,0.0302,105580.0,105570.0,0.189437]
[1738263907534,0.219619,105580.0,105570.0,0.65384374]
[1738263907743,0.0302,105580.0,105570.0,1.01464374]
[1738263907942,0.36286956,105590.0,105580.0,0.189419]
[1738263908141,0.36286956,105590.0,105580.0,0.65382574]
[1738263908337,0.14146056,105590.0,105580.0,0.65382574]
[1738263908738,0.14146056,105590.0,105580.0,0.68382574]
[1738263909335,0.14446056,105590.0,105580.0,0.68382574]
[1738263909536,0.16985173,105600.0,105580.0,0.67405348]
[1738263909743,0.16985173,105600.0,105590.0,0.78051448]
[1738263909937,0.16985173,105600.0,105590.0,0.67690774]
[1738263910838,0.16985173,105600.0,105590.0,0.65380774]
[1738263911039,0.16985173,105600.0,105590.0,0.67984774]
[1738263911549,0.17085173,105600.0,105590.0,0.68284774]
[1738263912244,0.17085173,105600.0,105590.0,0.70284774]
[1738263912444,0.16985173,105600.0,105590.0,0.70484774]
[1738263912646,0.00014258,105600.0,105590.0,0.70484774]
[1738263913048,0.00014258,105600.0,105590.0,0.68484774]
[1738263915052,0.00014258,105600.0,105590.0,0.73484774]
[1738263915250,0.00014258,105600.0,105590.0,0.83845448]
[1738263915453,0.033,105620.0,105610.0,0.189365]
[1738263915646,0.033,105620.0,105610.0,0.65377174]
[1738263917244,0.036,105620.0,105610.0,0.65377174]
[1738263920250,0.036,105620.0,105610.0,0.29297174]
[1738263920440,0.036,105620.0,105610.0,0.65377174]
[1738263923856,0.225347,105620.0,105610.0,0.65377174]
[1738263926056,0.189365,105610.0,105600.0,0.67992532]
[1738263926249,0.189365,105610.0,105600.0,0.71992532]
[1738263926445,0.189365,105610.0,105600.0,0.59031858]
[1738263927253,0.189365,105610.0,105600.0,0.69392532]
[1738263928260,0.189365,105610.0,105600.0,0.69492532]
[1738263930457,0.033,105620.0,105610.0,0.189365]
[1738263930660,0.033,105620.0,105610.0,0.65377174]
[1738263932353,0.036,105620.0,105610.0,0.65377174]
[1738263933259,0.225347,105620.0,105610.0,0.65377174]
[1738263933564,0.225347,105620.0,105610.0,0.46440674]
[1738263933763,0.225347,105620.0,105610.0,0.65377174]
[1738263936274,0.225347,105620.0,105610.0,0.550165]
[1738263936455,0.225347,105620.0,105610.0,0.65377174]
[1738263939163,0.23478042,105620.0,105610.0,0.65377174]
[1738263941361,0.23478042,105620.0,105610.0,0.29297174]
[1738263941559,0.189365,105610.0,105600.0,0.36094258]
[1738263941764,0.189365,105610.0,105600.0,0.18952558]
[1738263942461,0.189365,105610.0,105600.0,0.29313232]
[1738263942661,0.189365,105610.0,105600.0,0.19052558]
[1738263942862,0.189365,105610.0,105600.0,0.65493232]
[1738263943057,0.23478842,105620.0,105610.0,0.189365]
[1738263943266,0.39506415,105620.0,105610.0,0.65377174]
[1738263943465,0.39206415,105620.0,105610.0,0.65377174]
[1738263945170,0.39506415,105620.0,105610.0,0.65377174]
[1738263946973,0.225355,105620.0,105610.0,0.65377174]
[1738263947375,0.189365,105610.0,105600.0,0.18951558]
[1738263947559,0.189365,105610.0,105600.0,0.00014258]
[1738263947560,0.65377174,105610.0,105600.0,0.00014258]
[1738263947764,0.67977174,105610.0,105600.0,0.00014258]
[1738263948580,0.67977174,105610.0,105600.0,0.00114258]
[1738263949160,0.189401,105590.0,105580.0,0.00142045]
[1738263949361,0.189419,105580.0,105570.0,0.6179849]
[1738263949565,0.65382574,105580.0,105570.0,0.6179849]
[1738263950867,0.189437,105570.0,105560.0,0.69590771]
[1738263951067,0.222737,105570.0,105560.0,0.69590771]
[1738263951284,0.222737,105570.0,105560.0,0.79951445]
[1738263951478,0.222737,105570.0,105560.0,0.69590771]
[1738263951966,0.222737,105570.0,105560.0,0.69690771]
[1738263952167,0.222737,105570.0,105560.0,0.69790771]
[1738263952370,0.254437,105570.0,105560.0,0.69790771]
[1738263952570,0.254437,105570.0,105560.0,0.69990771]
[1738263953774,0.35804374,105570.0,105560.0,0.69990771]
[1738263953980,0.38914374,105570.0,105560.0,0.69990771]
[1738263954276,0.38914374,105570.0,105560.0,0.69690771]
[1738263954671,0.38914374,105570.0,105560.0,0.69890771]
[1738263954871,0.38914374,105570.0,105560.0,0.19459458]
[1738263955571,0.38914374,105570.0,105560.0,0.19159458]
[1738263956070,0.38914374,105570.0,105560.0,0.18959458]
[1738263956279,0.38914374,105570.0,105560.0,0.19359458]
[1738263957776,0.38914374,105570.0,105560.0,0.19059458]
[1738263958079,0.38914374,105570.0,105560.0,0.19159458]
[1738263958783,0.38914374,105570.0,105560.0,0.18959458]
[1738263958982,0.38914374,105570.0,105560.0,0.19059458]
[1738263960673,0.189424,105580.0,105560.0,0.64554932]
[1738263960874,0.64075058,105590.0,105580.0,0.189419]
[1738263961078,0.61475058,105590.0,105580.0,0.189419]
[1738263961671,0.62434151,105590.0,105580.0,0.189419]
[1738263962074,0.62934151,105590.0,105580.0,0.189419]
[1738263962780,0.62934151,105590.0,105580.0,0.191419]
[1738263963576,0.62434151,105590.0,105580.0,0.194419]
[1738263964383,0.72794825,105590.0,105580.0,0.194419]
[1738263965175,0.72794825,105590.0,105580.0,0.190419]
[1738263975092,0.72794825,105590.0,105580.0,0.189419]
[1738263975285,0.72794825,105590.0,105580.0,0.190419]
[1738263977792,0.72794825,105590.0,105580.0,0.001]
[1738263977984,0.189437,105570.0,105560.0,0.18959258]
[1738263978189,0.75745048,105570.0,105560.0,0.00014258]
[1738263978491,0.78815048,105570.0,105560.0,0.00014258]
[1738263978691,0.68454374,105570.0,105560.0,0.00014258]
[1738263979193,0.68454374,105570.0,105560.0,0.00214258]
[1738263979591,0.68454374,105570.0,105560.0,0.19159758]
[1738263979789,1.14895048,105570.0,105560.0,0.00214258]
[1738263980584,1.14895048,105570.0,105560.0,0.00014258]
[1738263980790,1.04534374,105570.0,105560.0,0.00014258]
[1738263981279,1.07874374,105570.0,105560.0,0.00014258]
[1738263982185,1.18535048,105570.0,105560.0,0.00014258]
[1738263982989,1.35497273,105570.0,105560.0,0.00014258]
[1738263985386,1.25136599,105570.0,105560.0,0.00014258]
[1738263986796,1.22339636,105570.0,105560.0,0.00014258]
[1738263987989,1.23309909,105570.0,105560.0,0.00014258]
[1738263988191,1.33670583,105570.0,105560.0,0.00014258]
[1738263988695,1.23309909,105570.0,105560.0,0.00014258]
[1738263989697,1.33670583,105570.0,105560.0,0.00014258]
[1738263990901,1.23309909,105570.0,105560.0,0.00014258]
[1738263991800,1.23309909,105570.0,105560.0,0.18959758]
[1738263992003,1.15549235,105570.0,105560.0,0.18959758]
[1738263992206,1.09879235,105570.0,105560.0,0.18959758]
[1738263992509,1.12479235,105570.0,105560.0,0.18959758]
[1738263992802,0.18775535,105570.0,105560.0,0.55039758]
[1738263992995,0.14565262,105570.0,105560.0,0.77400432]
[1738263993191,0.14465262,105570.0,105560.0,0.65400432]
[1738263993393,0.14465262,105570.0,105560.0,2.15500432]
[1738263993598,0.14165262,105570.0,105560.0,2.15500432]
[1738263994008,0.14165262,105570.0,105560.0,2.16353101]
[1738263994209,0.14165262,105570.0,105560.0,0.66653101]
[1738263994405,0.11323624,105570.0,105560.0,0.66653101]
[1738263996015,0.11323624,105570.0,105560.0,0.67253101]
[1738263999411,0.189419,105580.0,105570.0,0.189437]
[1738263999709,0.189419,105580.0,105570.0,0.550237]
[1738264000712,0.189419,105580.0,105570.0,0.553237]
[1738264001817,0.87307463,105590.0,105580.0,0.189419]
[1738264002901,0.189419,105580.0,105570.0,0.19443]
[1738264003103,0.65382574,105580.0,105570.0,0.005]
[1738264003316,0.49040674,105580.0,105560.0,0.55990727]
[1738264003504,0.189437,105570.0,105560.0,0.55990727]
[1738264003704,0.222337,105570.0,105560.0,0.55990727]
[1738264006402,0.222337,105570.0,105560.0,0.56190727]
[1738264006602,0.222337,105570.0,105560.0,0.56490727]
[1738264007205,0.222337,105570.0,105560.0,0.66851401]
[1738264009517,0.222337,105570.0,105560.0,0.56490727]
[1738264009910,0.0329,105570.0,105560.0,0.56490727]
[1738264010112,0.0329,105570.0,105560.0,0.66851401]
[1738264011217,0.0329,105570.0,105560.0,0.56490727]
[1738264012620,0.04219006,105570.0,105560.0,0.56490727]
[1738264016515,0.04219006,105570.0,105560.0,0.66851401]
[1738264016717,0.11323624,105580.0,105570.0,0.189437]
[1738264016916,0.11323624,105580.0,105570.0,0.65384374]
[1738264017304,0.11323624,105580.0,105570.0,0.550237]
[1738264017510,0.11323624,105580.0,105570.0,0.65384374]
[1738264017817,0.11323624,105580.0,105570.0,0.84384374]
[1738264018610,0.11323624,105580.0,105570.0,0.84484374]
[1738264019316,0.11323624,105580.0,105570.0,0.97445048]
[1738264019521,0.1417952,105590.0,105580.0,0.189419]
[1738264019720,0.1417952,105590.0,105580.0,0.90552574]
[1738264021022,0.19852003,105590.0,105580.0,0.90552574]
[1738264021714,0.20152003,105590.0,105580.0,0.90552574]
[1738264024519,0.00314258,105590.0,105580.0,1.13096823]
[1738264024716,0.00314258,105590.0,105580.0,1.16306823]
[1738264025218,0.00314258,105590.0,105580.0,1.17261024]
[1738264025615,0.00314258,105590.0,105580.0,2.67261024]
[1738264027117,0.00314258,105590.0,105580.0,2.69861024]
[1738264029421,0.19311803,105610.0,105600.0,0.189383]
[1738264029624,0.18361891,105610.0,105600.0,0.65378974]
[1738264029813,0.18361891,105610.0,105600.0,0.67974974]
[1738264030124,0.15061891,105610.0,105600.0,0.67974974]
[1738264030325,0.15061891,105610.0,105600.0,0.71154974]
[1738264031223,0.15861891,105610.0,105600.0,2.76334974]
[1738264031416,0.00014258,105620.0,105610.0,0.189365]
[1738264031730,0.17405262,105630.0,105620.0,0.189347]
[1738264032027,0.17405262,105630.0,105620.0,0.67971374]
[1738264032231,0.34367487,105630.0,105620.0,0.67971374]
[1738264032927,0.34867487,105630.0,105620.0,0.67971374]
[1738264033327,0.31627487,105630.0,105620.0,0.68971374]
[1738264033528,0.31627487,105630.0,105620.0,0.67971374]
[1738264034325,0.31127487,105630.0,105620.0,0.67971374]
[1738264034629,0.31127487,105630.0,105620.0,0.68071374]
[1738264035022,0.31327487,105630.0,105620.0,0.68071374]
[1738264035718,0.31127487,105630.0,105620.0,0.68071374]
[1738264035918,0.31127487,105630.0,105620.0,0.70171374]
[1738264036334,0.06474258,105640.0,105630.0,0.189329]
[1738264036527,0.06474258,105640.0,105630.0,0.65373574]
[1738264037028,0.06474258,105640.0,105630.0,2.15373574]
[1738264038520,0.06474258,105640.0,105630.0,0.65373574]
[1738264038722,0.25405358,105640.0,105630.0,0.67969574]
[1738264038923,0.25405358,105640.0,105630.0,2.15373574]
[1738264039122,0.25405358,105640.0,105630.0,2.17969574]
[1738264039522,0.25405358,105640.0,105630.0,2.050129]
[1738264039716,0.25405358,105640.0,105620.0,0.189341]
[1738264039717,0.189329,105630.0,105620.0,0.189341]
[1738264039928,0.29293574,105630.0,105620.0,0.215301]
[1738264040126,0.29293574,105630.0,105620.0,0.189341]
[1738264040327,0.189329,105630.0,105620.0,0.189341]
[1738264040529,0.189347,105620.0,105610.0,0.5856217]
[1738264040731,0.251847,105620.0,105610.0,0.5856217]
[1738264041036,0.251847,105620.0,105610.0,0.55029858]
[1738264041343,0.251847,105620.0,105610.0,0.18949858]
[1738264041522,0.251847,105620.0,105610.0,0.55029858]
[1738264041725,0.35545374,105620.0,105610.0,0.00014258]
[1738264041929,0.35545374,105620.0,105610.0,0.00414258]
[1738264042133,0.71625374,105620.0,105610.0,0.00414258]
[1738264042625,0.71625374,105620.0,105610.0,0.00614258]
[1738264043419,0.71625374,105620.0,105610.0,0.00514258]
[1738264043624,0.71625374,105620.0,105610.0,0.00114258]
[1738264043823,0.53659554,105620.0,105600.0,0.550177]
[1738264044034,0.35093174,105610.0,105600.0,0.189377]
[1738264044327,0.189383,105600.0,105590.0,1.05650113]
[1738264045129,0.16170932,105610.0,105590.0,0.50631313]
[1738264045328,0.35107832,105610.0,105600.0,0.551183]
[1738264046534,0.60827158,105610.0,105600.0,0.190383]
[1738264047435,0.71187832,105610.0,105600.0,0.190383]
[1738264048534,0.71287832,105610.0,105600.0,0.189383]
[1738264049127,0.71387832,105610.0,105600.0,0.189383]
[1738264051633,0.52450932,105610.0,105580.0,0.52294581]
[1738264051827,0.52450932,105610.0,105580.0,0.00156284]
[1738264051828,0.10360674,105590.0,105580.0,0.00156284]
[1738264052032,0.29300774,105590.0,105580.0,0.19097784]
[1738264052227,0.29300774,105590.0,105580.0,0.55177784]
[1738264052228,0.254001,105590.0,105580.0,0.55177784]
[1738264052841,0.254001,105590.0,105580.0,0.55377784]
[1738264053135,0.254001,105590.0,105580.0,0.55777784]
[1738264054229,0.35760774,105590.0,105580.0,0.19697784]
[1738264054441,0.71840774,105590.0,105580.0,0.00756284]
[1738264054627,0.71840774,105590.0,105580.0,0.00614258]
[1738264054829,0.71840774,105590.0,105580.0,0.19556158]
[1738264055035,0.614801,105590.0,105580.0,0.19356158]
[1738264055339,0.254001,105590.0,105580.0,0.29916832]
[1738264055645,0.254001,105590.0,105580.0,0.19556158]
[1738264055937,0.254001,105590.0,105580.0,0.19356158]
[1738264056238,0.254001,105590.0,105580.0,0.19056158]
[1738264057830,0.254001,105590.0,105580.0,0.19356158]
[1738264058030,0.254001,105590.0,105580.0,0.19556158]
[1738264058431,0.254001,105590.0,105580.0,0.19256158]
[1738264059037,0.254001,105590.0,105580.0,0.19056158]
[1738264059640,0.254001,105590.0,105580.0,0.29416832]
[1738264060449,0.254001,105590.0,105580.0,0.65496832]
[1738264060633,0.285201,105590.0,105580.0,0.65496832]
[1738264061445,0.285201,105590.0,105580.0,0.19056158]
[1738264062845,0.285201,105590.0,105580.0,0.65496832]
[1738264063034,0.0958,105590.0,105580.0,0.29416832]
[1738264063346,0.285201,105590.0,105580.0,0.65496832]
[1738264063545,0.285201,105590.0,105580.0,0.29416832]
[1738264069745,0.253201,105590.0,105580.0,0.29416832]
[1738264070132,0.0326,105590.0,105580.0,0.29416832]
[1738264070334,0.0326,105590.0,105580.0,0.85496832]
[1738264070533,0.22485804,105600.0,105590.0,0.189401]
[1738264070944,0.19889804,105600.0,105590.0,0.189401]
[1738264071642,0.19989804,105600.0,105590.0,0.189401]
[1738264072646,0.01050104,105600.0,105590.0,0.67380774]
[1738264072850,0.001,105600.0,105590.0,0.70690774]
[1738264074243,0.190383,105600.0,105590.0,0.70690774]
[1738264074855,0.001,105600.0,105590.0,0.68690774]
[1738264075152,0.001,105600.0,105590.0,0.88690774]
[1738264076649,0.001,105600.0,105590.0,0.89622711]
[1738264077756,0.001,105600.0,105590.0,1.1216696]
[1738264081156,0.00014258,105610.0,105590.0,1.03587534]
[1738264081457,0.00014258,105610.0,105600.0,0.81789648]
[1738264081749,0.00014258,105610.0,105600.0,1.05385648]
[1738264081959,0.11352827,105610.0,105600.0,1.05385648]
[1738264083347,0.14165262,105630.0,105600.0,1.13851348]
[1738264083563,0.14165262,105630.0,105620.0,1.01455474]
[1738264084259,0.14165262,105630.0,105620.0,1.04555474]
[1738264084557,0.79538936,105630.0,105620.0,0.189348]
[1738264084753,0.42748262,105630.0,105620.0,0.189348]
[1738264084956,0.42748262,105630.0,105620.0,0.29295474]
[1738264085150,0.78828262,105630.0,105620.0,0.29295474]
[1738264085861,0.75023674,105630.0,105620.0,0.189348]
[1738264086157,0.64663,105630.0,105620.0,0.190348]
[1738264087060,0.64663,105630.0,105620.0,0.001]
[1738264087447,0.75023674,105630.0,105620.0,0.001]
[1738264087648,0.189348,105620.0,105610.0,0.50645571]
[1738264087848,0.65375474,105620.0,105610.0,0.50645571]
[1738264089260,0.65375474,105620.0,105610.0,0.00014258]
[1738264089463,0.189365,105610.0,105600.0,0.16846726]
[1738264089757,0.71203174,105610.0,105600.0,0.16846726]
[1738264089959,0.71203174,105610.0,105600.0,0.11856726]
[1738264092853,0.71303174,105610.0,105600.0,0.11856726]
[1738264093259,0.189383,105600.0,105590.0,0.55033258]
[1738264093462,0.17495262,105610.0,105600.0,0.189383]
[1738264093759,0.17495262,105610.0,105600.0,0.65378974]
[1738264093961,0.14265262,105610.0,105600.0,0.75739648]
[1738264094160,0.14265262,105610.0,105600.0,2.27739648]
[1738264094356,0.14265262,105610.0,105600.0,2.17378974]
[1738264094550,0.14265262,105610.0,105600.0,2.15378974]
[1738264094755,0.14265262,105610.0,105600.0,2.17378974]
[1738264095051,0.14165262,105610.0,105600.0,0.67378974]
[1738264095965,0.14265262,105610.0,105600.0,0.67378974]
[1738264096561,0.14265262,105610.0,105600.0,0.68317965]
[1738264096968,0.43562436,105610.0,105600.0,0.189383]
[1738264097462,0.190365,105610.0,105600.0,0.189383]
[1738264098057,0.29397174,105610.0,105600.0,0.189383]
[1738264101773,0.190365,105610.0,105600.0,0.189383]
[1738264103765,0.190365,105610.0,105600.0,0.209383]
[1738264104372,0.19977865,105610.0,105600.0,0.209383]
[1738264105670,0.23087865,105610.0,105600.0,0.209383]
[1738264105974,0.23087865,105610.0,105600.0,0.570183]
[1738264106163,0.23087865,105610.0,105600.0,0.550183]
[1738264111075,0.221465,105610.0,105600.0,0.550183]
[1738264123280,0.001,105610.0,105600.0,0.79739648]
[1738264123597,0.31141745,105620.0,105610.0,0.189365]
[1738264123891,0.31141745,105620.0,105610.0,0.91159174]
[1738264124692,0.31341745,105620.0,105610.0,0.91159174]
[1738264125392,0.31341745,105620.0,105610.0,0.91559174]
[1738264127289,0.31341745,105620.0,105610.0,0.91759174]
[1738264127290,0.31141745,105620.0,105610.0,0.91759174]
[1738264128591,0.00142055,105640.0,105630.0,0.18933]
[1738264128796,0.00142055,105640.0,105630.0,0.68503674]
[1738264128998,0.00142055,105640.0,105630.0,0.71095674]
[1738264129200,0.00142055,105640.0,105630.0,0.60735]
[1738264130691,0.00142055,105640.0,105630.0,0.71095674]
[1738264130995,0.39094632,105650.0,105640.0,0.189312]
[1738264131186,0.29659863,105650.0,105640.0,0.189312]
[1738264132091,0.29759863,105650.0,105640.0,0.189312]
[1738264132689,0.40120537,105650.0,105640.0,0.189312]
[1738264132894,0.18933,105630.0,105620.0,0.22558507]
[1738264133099,1.01453674,105630.0,105620.0,0.22558507]
[1738264133294,1.14964348,105630.0,105620.0,0.22558507]
[1738264133495,1.14964348,105630.0,105610.0,0.28229079]
[1738264133496,0.96031348,105630.0,105610.0,0.28229079]
[1738264133695,0.68475474,105620.0,105610.0,0.28229079]
[1738264133896,0.71067474,105620.0,105610.0,0.28229079]
[1738264134299,0.71067474,105620.0,105610.0,0.28087064]
[1738264135507,0.71167474,105620.0,105610.0,0.50532302]
[1738264136796,0.75197018,105620.0,105610.0,0.50532302]
[1738264139094,0.7042748,105620.0,105600.0,0.18952058]
[1738264139299,0.189365,105610.0,105600.0,0.18952058]
[1738264139909,0.221265,105610.0,105600.0,0.18952058]
[1738264140508,0.221265,105610.0,105600.0,0.19052058]
[1738264142513,0.221265,105610.0,105600.0,0.19152058]
[1738264142703,0.221265,105610.0,105600.0,0.29512732]
[1738264142903,0.76310506,105620.0,105600.0,0.46654932]
[1738264143104,0.76310506,105620.0,105610.0,0.189365]
[1738264143402,0.76310506,105620.0,105610.0,0.69377174]
[1738264143403,0.14165262,105620.0,105610.0,0.69377174]
[1738264143598,0.14165262,105620.0,105610.0,0.72607174]
[1738264143810,0.14165262,105620.0,105610.0,2.22607174]
[1738264144915,0.14165262,105620.0,105610.0,2.22807174]
[1738264145408,0.14165262,105620.0,105610.0,0.72807174]
[1738264145605,0.14265262,105620.0,105610.0,0.72807174]
[1738264146007,0.14165262,105620.0,105610.0,2.23207174]
[1738264146904,0.00014258,105630.0,105610.0,2.04270674]
[1738264147212,0.00014258,105630.0,105620.0,0.74267374]
[1738264149313,0.00014258,105630.0,105620.0,0.74367374]
[1738264149819,0.00014258,105630.0,105620.0,0.96467374]
[1738264153512,0.00014258,105630.0,105620.0,0.93875374]
[1738264153713,0.00014258,105630.0,105620.0,0.96467374]
[1738264156118,0.00014258,105630.0,105620.0,0.93875374]
[1738264156320,0.00014258,105630.0,105620.0,0.96467374]
[1738264156510,0.00014258,105630.0,105620.0,0.93875374]
[1738264156706,0.00014258,105630.0,105620.0,0.96467374]
[1738264162618,0.00014258,105630.0,105620.0,0.93875374]
[1738264162817,0.00014258,105630.0,105620.0,0.96467374]
[1738264164827,0.00014258,105630.0,105620.0,0.93875374]
[1738264165015,0.00014258,105630.0,105620.0,0.96467374]
[1738264168026,0.00014258,105630.0,105620.0,0.93217374]
[1738264168229,0.00014258,105630.0,105620.0,0.71217374]
[1738264168722,0.00014258,105630.0,105620.0,0.68625374]
[1738264168929,0.00014258,105630.0,105620.0,0.71217374]
[1738264173526,0.00014258,105630.0,105620.0,0.68625374]
[1738264173723,0.00014258,105630.0,105620.0,0.71217374]
[1738264174531,0.08496827,105630.0,105620.0,0.71217374]
[1738264177629,0.19808576,105630.0,105620.0,0.71217374]
[1738264179729,0.19808576,105630.0,105620.0,0.90217374]
[1738264180633,0.19808576,105630.0,105620.0,0.9340898]
[1738264181632,0.38741576,105630.0,105620.0,0.8358284]
[1738264181828,0.44991576,105630.0,105620.0,0.8099084]
[1738264182235,0.44991576,105630.0,105620.0,0.8776698]
[1738264182438,0.44991576,105630.0,105620.0,0.8099084]
[1738264183233,0.26058576,105630.0,105620.0,0.8099084]
[1738264183432,0.26058576,105630.0,105620.0,0.8776698]
[1738264183938,0.44991576,105630.0,105620.0,0.8099084]
[1738264184440,0.44991576,105630.0,105620.0,0.8776698]
[1738264184739,0.44991576,105630.0,105620.0,0.8099084]
[1738264185036,0.44991576,105630.0,105620.0,0.8776698]
[1738264185645,0.26058576,105630.0,105620.0,0.8776698]
[1738264187038,0.26058576,105630.0,105620.0,0.8099084]
[1738264187247,0.29068576,105630.0,105620.0,0.8099084]
[1738264187942,0.29068576,105630.0,105620.0,0.8776698]
[1738264188143,0.29068576,105630.0,105620.0,0.8099084]
[1738264189046,0.29068576,105630.0,105620.0,0.8776698]
[1738264189441,0.19808576,105630.0,105620.0,0.9454312]
[1738264189646,0.11311749,105640.0,105630.0,0.18933]
[1738264189842,0.14165262,105650.0,105640.0,0.189312]
[1738264190047,0.14165262,105650.0,105640.0,2.4371348]
[1738264191550,0.14265262,105650.0,105640.0,2.4371348]
[1738264192548,0.14265262,105650.0,105640.0,2.40480915]
[1738264192939,0.14265262,105650.0,105640.0,2.43068915]
[1738264193440,0.14265262,105650.0,105640.0,2.37330915]
[1738264193642,0.33194662,105650.0,105640.0,0.29250915]
[1738264193844,0.33194662,105650.0,105640.0,0.189312]
[1738264194646,0.33194662,105650.0,105640.0,0.65330915]
[1738264194647,0.14265262,105650.0,105640.0,0.65330915]
[1738264194851,0.001,105650.0,105640.0,0.65330915]
[1738264199862,0.001,105650.0,105640.0,2.15330915]
[1738264200250,0.001,105650.0,105640.0,2.21330915]
[1738264200559,0.1509822,105670.0,105640.0,2.1271943]
[1738264200751,0.14165262,105670.0,105660.0,1.1172703]
[1738264200958,0.14165262,105670.0,105660.0,0.65327315]
[1738264201157,0.39731062,105670.0,105650.0,0.49559715]
[1738264201359,0.42941062,105670.0,105660.0,0.189276]
[1738264201548,0.42941062,105670.0,105660.0,0.29247315]
[1738264201754,0.42941062,105670.0,105660.0,0.65327315]
[1738264202352,0.42941062,105670.0,105660.0,0.29247315]
[1738264202757,0.43041062,105670.0,105660.0,0.189276]
[1738264203453,0.43141062,105670.0,105660.0,0.189276]
[1738264204966,0.34534977,105670.0,105650.0,0.00014258]
[1738264205264,0.189276,105660.0,105650.0,0.18942958]
[1738264205461,0.550076,105660.0,105650.0,0.00014258]
[1738264205758,0.65327315,105660.0,105650.0,0.00014258]
[1738264206160,0.5671943,105660.0,105640.0,0.22443901]
[1738264206360,0.70997115,105650.0,105640.0,0.41374901]
[1738264206558,0.34917115,105650.0,105640.0,0.41374901]
[1738264206750,0.70997115,105650.0,105640.0,0.22443901]
[1738264207365,0.70997115,105650.0,105640.0,0.41375101]
[1738264207566,0.70997115,105650.0,105640.0,0.41775101]
[1738264209063,0.70997115,105650.0,105640.0,0.193312]
[1738264209064,0.606774,105650.0,105640.0,0.193312]
[1738264209461,0.74317115,105650.0,105640.0,0.004]
[1738264209668,0.189312,105640.0,105630.0,0.50947058]
[1738264209867,0.32500915,105640.0,105630.0,0.50947058]
[1738264210561,0.221812,105640.0,105630.0,0.50947058]
[1738264210767,0.582612,105640.0,105630.0,0.50947058]
[1738264210954,0.582612,105640.0,105630.0,0.51047058]
[1738264213165,0.582612,105640.0,105630.0,0.50947058]
[1738264213370,0.582612,105640.0,105630.0,0.51047058]
[1738264216673,0.65038214,105640.0,105630.0,0.51047058]
[1738264218176,0.28958214,105640.0,105630.0,0.51047058]
[1738264227075,0.35735228,105640.0,105630.0,0.51047058]
[1738264227280,0.28958214,105640.0,105630.0,0.51047058]
[1738264228677,0.65038214,105640.0,105630.0,0.51047058]
[1738264231286,0.28958214,105640.0,105630.0,0.51047058]
[1738264231677,0.35735228,105640.0,105630.0,0.51047058]
[1738264231874,0.65038214,105640.0,105630.0,0.51047058]
[1738264233684,0.61788214,105640.0,105630.0,0.51047058]
[1738264233987,0.83295295,105650.0,105640.0,0.189312]
[1738264234185,0.85883295,105650.0,105640.0,0.189312]
[1738264234991,0.86092258,105650.0,105640.0,0.189312]
[1738264235190,0.88680258,105650.0,105640.0,0.189312]
[1738264235586,0.88780258,105650.0,105640.0,0.189312]
[1738264236401,0.88880258,105650.0,105640.0,0.189312]
[1738264237790,0.43435244,105650.0,105640.0,0.25708214]
[1738264237985,0.42492725,105650.0,105640.0,0.25708214]
[1738264238187,0.20482225,105650.0,105640.0,0.61788214]
[1738264238390,0.17162225,105650.0,105640.0,0.61788214]
[1738264238992,0.31355671,105650.0,105640.0,0.61788214]
[1738264239190,0.31355671,105650.0,105640.0,0.25708214]
[1738264239392,0.31355671,105650.0,105640.0,0.61788214]
[1738264241991,0.31355671,105650.0,105640.0,0.25708214]
[1738264242295,0.31355671,105650.0,105640.0,0.78624869]
[1738264242498,0.002,105650.0,105640.0,0.78624869]
[1738264243798,0.002,105650.0,105640.0,0.79595966]
[1738264246495,0.61986414,105650.0,105640.0,0.16836655]
[1738264246799,0.77571428,105650.0,105640.0,0.16836655]